[Event "Early-Titled-Tuesday-Blitz-April-16-2024"]
[Site "Chess.com"]
[Date "2024.04.16"]
[Round "11"]
[White "Brahianzevich"]
[Black "romulocardoso"]
[Result "0-1"]
[WhiteElo "2490"]
[BlackElo "2322"]
[TimeControl "180+1"]
[EndTime "10:09:00 PDT"]
[Termination "romulocardoso won by resignation"]

1. e4 {[%clk 0:02:57.8]} 1... c5 {[%clk 0:02:52.5]} 2. Nf3 {[%clk 0:02:57.1]}
2... g6 {[%clk 0:02:52.6]} 3. d4 {[%clk 0:02:57.1]} 3... cxd4 {[%clk 0:02:53.5]}
4. Nxd4 {[%clk 0:02:57.6]} 4... Nc6 {[%clk 0:02:53.7]} 5. Nc3 {[%clk 0:02:57.9]}
5... Bg7 {[%clk 0:02:53.7]} 6. Nde2 {[%clk 0:02:57.9]} 6... Nf6 {[%clk
0:02:53.9]} 7. g3 {[%clk 0:02:57.7]} 7... O-O {[%clk 0:02:54]} 8. Bg2 {[%clk
0:02:57.8]} 8... d6 {[%clk 0:02:54.3]} 9. O-O {[%clk 0:02:56.9]} 9... Be6 {[%clk
0:02:54.5]} 10. a4 {[%clk 0:02:56.2]} 10... Rc8 {[%clk 0:02:53.9]} 11. h3 {[%clk
0:02:56.3]} 11... Qd7 {[%clk 0:02:53.8]} 12. Be3 {[%clk 0:02:50.2]} 12... Bxh3
{[%clk 0:02:52.5]} 13. Nd5 {[%clk 0:02:14.3]} 13... Bxg2 {[%clk 0:02:50.6]} 14.
Kxg2 {[%clk 0:02:14.7]} 14... Ng4 {[%clk 0:02:48.2]} 15. Bc1 {[%clk 0:02:10.4]}
15... e6 {[%clk 0:02:47]} 16. Ndc3 {[%clk 0:02:09.5]} 16... e5 {[%clk
0:02:42.4]} 17. Rh1 {[%clk 0:02:10.2]} 17... Nd4 {[%clk 0:02:41.1]} 18. f3
{[%clk 0:02:05.3]} 18... Nxe2 {[%clk 0:02:14.8]} 19. Qxe2 {[%clk 0:02:03.8]}
19... Nf6 {[%clk 0:02:15.3]} 20. Bh6 {[%clk 0:02:03.8]} 20... d5 {[%clk
0:02:11.3]} 21. Bxg7 {[%clk 0:01:56.1]} 21... Kxg7 {[%clk 0:02:11.5]} 22. Qd2
{[%clk 0:01:56.2]} 22... dxe4 {[%clk 0:01:54.6]} 23. Qh6+ {[%clk 0:01:55.4]}
23... Kg8 {[%clk 0:01:54.7]} 24. Rad1 {[%clk 0:01:31.3]} 24... exf3+ {[%clk
0:01:53.2]} 25. Kf1 {[%clk 0:01:23.3]} 25... Qc6 {[%clk 0:01:50.4]} 26. Nd5
{[%clk 0:01:19.1]} 26... Qc4+ {[%clk 0:01:48.6]} 27. Kg1 {[%clk 0:01:17.9]}
27... f2+ {[%clk 0:01:48.2]} 28. Kxf2 {[%clk 0:01:07.9]} 28... Ng4+ {[%clk
0:01:47.5]} 0-1

[Event "Early-Titled-Tuesday-Blitz-April-16-2024"]
[Site "Chess.com"]
[Date "2024.04.16"]
[Round "11"]
[White "MaxLeto"]
[Black "GMCarbone"]
[Result "1-0"]
[WhiteElo "2422"]
[BlackElo "2559"]
[TimeControl "180+1"]
[EndTime "10:09:02 PDT"]
[Termination "MaxLeto won by resignation"]

1. g4 {[%clk 0:03:00.3]} 1... d5 {[%clk 0:02:59.6]} 2. Bg2 {[%clk 0:03:00.6]}
2... e6 {[%clk 0:02:59.7]} 3. d4 {[%clk 0:02:59.9]} 3... c5 {[%clk 0:02:53.8]}
4. c3 {[%clk 0:03:00.2]} 4... Nc6 {[%clk 0:02:53.6]} 5. Nf3 {[%clk 0:02:59.8]}
5... Nf6 {[%clk 0:02:50.3]} 6. g5 {[%clk 0:03:00.2]} 6... Ne4 {[%clk 0:02:50.6]}
7. h4 {[%clk 0:03:01.1]} 7... Bd6 {[%clk 0:02:46.4]} 8. Be3 {[%clk 0:03:00.8]}
8... O-O {[%clk 0:02:32.9]} 9. Nbd2 {[%clk 0:02:59.9]} 9... cxd4 {[%clk
0:02:31.7]} 10. Nxe4 {[%clk 0:02:52.8]} 10... dxe4 {[%clk 0:02:27.3]} 11. Nxd4
{[%clk 0:02:51.3]} 11... f5 {[%clk 0:02:19.9]} 12. gxf6 {[%clk 0:02:46.4]} 12...
gxf6 {[%clk 0:02:14.6]} 13. Nxc6 {[%clk 0:02:42]} 13... bxc6 {[%clk 0:02:13.6]}
14. Bxe4 {[%clk 0:02:42.9]} 14... Qc7 {[%clk 0:02:09.6]} 15. Qa4 {[%clk
0:02:27.7]} 15... Bd7 {[%clk 0:02:04.2]} 16. O-O-O {[%clk 0:02:21]} 16... Rab8
{[%clk 0:01:52.2]} 17. Qd4 {[%clk 0:02:14.2]} 17... Qb7 {[%clk 0:01:43.7]} 18.
Rd2 {[%clk 0:02:09.9]} 18... c5 {[%clk 0:01:19.9]} 19. Rg1+ {[%clk 0:02:00.7]}
19... Kh8 {[%clk 0:01:17.3]} 20. Qxd6 {[%clk 0:01:56.9]} 20... Qxe4 {[%clk
0:01:17.4]} 21. Qxd7 {[%clk 0:01:57.6]} 21... Rg8 {[%clk 0:01:17.1]} 22. Rxg8+
{[%clk 0:01:49.9]} 22... Rxg8 {[%clk 0:01:18]} 23. Rd1 {[%clk 0:01:48.2]} 23...
f5 {[%clk 0:01:13.5]} 24. Bg5 {[%clk 0:01:44]} 24... Qe5 {[%clk 0:01:07.7]} 25.
Qf7 {[%clk 0:01:39.3]} 1-0

[Event "Early-Titled-Tuesday-Blitz-April-16-2024"]
[Site "Chess.com"]
[Date "2024.04.16"]
[Round "11"]
[White "Kushch_Nikolai"]
[Black "Ati1517"]
[Result "1-0"]
[WhiteElo "2366"]
[BlackElo "2244"]
[TimeControl "180+1"]
[EndTime "10:09:19 PDT"]
[Termination "Kushch_Nikolai won by resignation"]

1. Nf3 {[%clk 0:03:00.9]} 1... Nf6 {[%clk 0:02:45.9]} 2. c4 {[%clk 0:03:00.6]}
2... g6 {[%clk 0:02:42.9]} 3. b4 {[%clk 0:03:00.6]} 3... Bg7 {[%clk 0:02:43.5]}
4. Bb2 {[%clk 0:03:01.1]} 4... O-O {[%clk 0:02:44]} 5. d4 {[%clk 0:03:01.5]}
5... d6 {[%clk 0:02:44.5]} 6. e3 {[%clk 0:03:02]} 6... Nbd7 {[%clk 0:02:43.8]}
7. Be2 {[%clk 0:03:01.9]} 7... a5 {[%clk 0:02:41.8]} 8. b5 {[%clk 0:03:01.3]}
8... c6 {[%clk 0:02:41.1]} 9. bxc6 {[%clk 0:02:59.3]} 9... bxc6 {[%clk 0:02:42]}
10. O-O {[%clk 0:02:59.3]} 10... Bb7 {[%clk 0:02:41.7]} 11. Nc3 {[%clk
0:02:56.9]} 11... Qc7 {[%clk 0:02:39.2]} 12. Qc2 {[%clk 0:02:55.8]} 12... e5
{[%clk 0:02:38.9]} 13. Ba3 {[%clk 0:02:54.2]} 13... Rfe8 {[%clk 0:02:38.4]} 14.
Rab1 {[%clk 0:02:51.8]} 14... exd4 {[%clk 0:02:36.9]} 15. exd4 {[%clk
0:02:50.9]} 15... c5 {[%clk 0:02:33.6]} 16. Nb5 {[%clk 0:02:38.2]} 16... Qb6
{[%clk 0:02:07.9]} 17. d5 {[%clk 0:02:33.4]} 17... Ba6 {[%clk 0:02:03.1]} 18.
Rfe1 {[%clk 0:02:30.3]} 18... Bxb5 {[%clk 0:02:02.5]} 19. Rxb5 {[%clk
0:02:27.8]} 19... Qc7 {[%clk 0:02:03]} 20. h3 {[%clk 0:02:25.4]} 20... Ne4
{[%clk 0:02:03.1]} 21. Bb2 {[%clk 0:02:20.6]} 21... Rab8 {[%clk 0:01:55.6]} 22.
a4 {[%clk 0:02:12.7]} 22... Nb6 {[%clk 0:01:51.3]} 23. Bxg7 {[%clk 0:02:11.1]}
23... Kxg7 {[%clk 0:01:50]} 24. Bd3 {[%clk 0:02:07.9]} 24... f5 {[%clk
0:01:50.1]} 25. Bxe4 {[%clk 0:02:04.5]} 25... fxe4 {[%clk 0:01:48.5]} 26. Ng5
{[%clk 0:02:00.3]} 26... Kg8 {[%clk 0:01:42.3]} 27. Rxe4 {[%clk 0:01:49.2]}
27... Rxe4 {[%clk 0:01:41.8]} 28. Qxe4 {[%clk 0:01:47.8]} 28... h6 {[%clk
0:01:41.3]} 29. Ne6 {[%clk 0:01:43.2]} 29... Qe7 {[%clk 0:01:38.7]} 30. Qxg6+
{[%clk 0:01:42.1]} 30... Kh8 {[%clk 0:01:33.5]} 31. Rb3 {[%clk 0:01:39]} 31...
Nd7 {[%clk 0:01:28.7]} 32. Qxh6+ {[%clk 0:01:37.6]} 32... Kg8 {[%clk 0:01:28.3]}
33. Rg3+ {[%clk 0:01:36.2]} 33... Kf7 {[%clk 0:01:28.1]} 34. Rg7+ {[%clk
0:01:34.8]} 34... Ke8 {[%clk 0:01:29]} 35. Rxe7+ {[%clk 0:01:33.1]} 35... Kxe7
{[%clk 0:01:28.7]} 36. Qg7+ {[%clk 0:01:31.6]} 36... Ke8 {[%clk 0:01:28.3]} 37.
h4 {[%clk 0:01:27.2]} 37... Ne5 {[%clk 0:01:26.8]} 1-0

[Event "Early-Titled-Tuesday-Blitz-April-16-2024"]
[Site "Chess.com"]
[Date "2024.04.16"]
[Round "11"]
[White "Misterfox120"]
[Black "Shuvalov"]
[Result "0-1"]
[WhiteElo "2390"]
[BlackElo "2604"]
[TimeControl "180+1"]
[EndTime "10:09:29 PDT"]
[Termination "Shuvalov won by checkmate"]

1. d4 {[%clk 0:02:56.3]} 1... Nf6 {[%clk 0:02:59.7]} 2. Nc3 {[%clk 0:02:56.3]}
2... d5 {[%clk 0:02:57.9]} 3. Bf4 {[%clk 0:02:56.1]} 3... g6 {[%clk 0:02:56.7]}
4. e3 {[%clk 0:02:54.8]} 4... Bg7 {[%clk 0:02:57.2]} 5. Nb5 {[%clk 0:02:54.9]}
5... Na6 {[%clk 0:02:56.2]} 6. Nc3 {[%clk 0:02:55.4]} 6... Nb8 {[%clk
0:02:53.8]} 7. Nb5 {[%clk 0:02:54.1]} 7... Na6 {[%clk 0:02:53.7]} 8. Nc3 {[%clk
0:02:54.6]} 8... c5 {[%clk 0:02:45.8]} 9. Bxa6 {[%clk 0:02:52.3]} 9... bxa6
{[%clk 0:02:45.6]} 10. dxc5 {[%clk 0:02:30.7]} 10... Qa5 {[%clk 0:02:45]} 11.
Qd4 {[%clk 0:02:30.6]} 11... O-O {[%clk 0:02:36.9]} 12. b4 {[%clk 0:02:29.9]}
12... Qa3 {[%clk 0:02:30.2]} 13. Be5 {[%clk 0:02:26.3]} 13... Bf5 {[%clk
0:02:20.7]} 14. Nge2 {[%clk 0:02:00.8]} 14... Rab8 {[%clk 0:02:11.7]} 15. Bxb8
{[%clk 0:00:55.1]} 15... Rxb8 {[%clk 0:02:12.6]} 16. Qf4 {[%clk 0:00:29.4]}
16... Rxb4 {[%clk 0:02:01.6]} 17. Qc7 {[%clk 0:00:19.3]} 17... Ne8 {[%clk
0:01:56.7]} 18. Qd8 {[%clk 0:00:18.2]} 18... Bxc3+ {[%clk 0:01:54.9]} 19. Kd1
{[%clk 0:00:16.9]} 19... Bxc2+ {[%clk 0:01:46.3]} 20. Kxc2 {[%clk 0:00:16.7]}
20... Qb2+ {[%clk 0:01:46.7]} 21. Kd3 {[%clk 0:00:16.4]} 21... Qd2# {[%clk
0:01:46.1]} 0-1

[Event "Early-Titled-Tuesday-Blitz-April-16-2024"]
[Site "Chess.com"]
[Date "2024.04.16"]
[Round "11"]
[White "Aygehovit1992"]
[Black "Rud_Makarian"]
[Result "0-1"]
[WhiteElo "2769"]
[BlackElo "3022"]
[TimeControl "180+1"]
[EndTime "10:09:30 PDT"]
[Termination "Rud_Makarian won by checkmate"]

1. e4 {[%clk 0:03:00.9]} 1... c5 {[%clk 0:02:57.9]} 2. Nf3 {[%clk 0:03:00.8]}
2... d6 {[%clk 0:02:57.1]} 3. d4 {[%clk 0:03:00.9]} 3... cxd4 {[%clk 0:02:58]}
4. Nxd4 {[%clk 0:03:01.8]} 4... Nf6 {[%clk 0:02:58.7]} 5. Nc3 {[%clk 0:03:02.4]}
5... Nc6 {[%clk 0:02:59.3]} 6. Bg5 {[%clk 0:03:00.9]} 6... Bd7 {[%clk
0:02:59.9]} 7. Nxc6 {[%clk 0:03:00.9]} 7... Bxc6 {[%clk 0:02:59]} 8. Bxf6 {[%clk
0:02:58.9]} 8... gxf6 {[%clk 0:02:59.9]} 9. Bb5 {[%clk 0:02:59]} 9... Qa5 {[%clk
0:02:56.5]} 10. Bxc6+ {[%clk 0:02:56.7]} 10... bxc6 {[%clk 0:02:57.4]} 11. O-O
{[%clk 0:02:54.5]} 11... h5 {[%clk 0:02:57.3]} 12. Qd3 {[%clk 0:02:50.7]} 12...
h4 {[%clk 0:02:48.6]} 13. Rad1 {[%clk 0:02:48.2]} 13... e6 {[%clk 0:02:46.2]}
14. Qc4 {[%clk 0:02:45.2]} 14... Kd7 {[%clk 0:02:40]} 15. f4 {[%clk 0:02:37.5]}
15... h3 {[%clk 0:02:33.3]} 16. g3 {[%clk 0:02:37]} 16... Rb8 {[%clk 0:02:27.5]}
17. f5 {[%clk 0:02:26.2]} 17... Be7 {[%clk 0:02:17.9]} 18. fxe6+ {[%clk
0:02:01.8]} 18... fxe6 {[%clk 0:02:18.8]} 19. e5 {[%clk 0:02:02.1]} 19... Rb4
{[%clk 0:02:08.7]} 20. Qd3 {[%clk 0:01:32]} 20... Qxe5 {[%clk 0:02:00.2]} 21.
Rfe1 {[%clk 0:01:29.1]} 21... Qc5+ {[%clk 0:01:59.6]} 22. Kh1 {[%clk 0:01:29.3]}
22... f5 {[%clk 0:01:33.6]} 23. b3 {[%clk 0:01:06.1]} 23... Bf6 {[%clk
0:01:26.3]} 24. Ne2 {[%clk 0:01:05.1]} 24... Qd5+ {[%clk 0:01:24.7]} 25. Kg1
{[%clk 0:00:49.7]} 25... Qg2# {[%clk 0:01:23.2]} 0-1

[Event "Early-Titled-Tuesday-Blitz-April-16-2024"]
[Site "Chess.com"]
[Date "2024.04.16"]
[Round "11"]
[White "YegoryoCh"]
[Black "Kildepiotr"]
[Result "0-1"]
[WhiteElo "2587"]
[BlackElo "2710"]
[TimeControl "180+1"]
[EndTime "10:09:39 PDT"]
[Termination "Kildepiotr won by resignation"]

1. g4 {[%clk 0:03:00.9]} 1... d5 {[%clk 0:02:59.3]} 2. h3 {[%clk 0:03:00.2]}
2... c6 {[%clk 0:02:58.2]} 3. Bg2 {[%clk 0:02:59.8]} 3... e5 {[%clk 0:02:58.5]}
4. Nc3 {[%clk 0:02:58.7]} 4... h5 {[%clk 0:02:57.7]} 5. g5 {[%clk 0:02:58.5]}
5... Qxg5 {[%clk 0:02:55.7]} 6. Kf1 {[%clk 0:02:59]} 6... Qd8 {[%clk 0:02:50.9]}
7. d4 {[%clk 0:02:58.6]} 7... e4 {[%clk 0:02:50.9]} 8. Bf4 {[%clk 0:02:57.7]}
8... Bd6 {[%clk 0:02:50.6]} 9. Bxd6 {[%clk 0:02:56.8]} 9... Qxd6 {[%clk
0:02:51.5]} 10. e3 {[%clk 0:02:57.5]} 10... Ne7 {[%clk 0:02:47.9]} 11. Nge2
{[%clk 0:02:54.9]} 11... Ng6 {[%clk 0:02:46.6]} 12. Ng3 {[%clk 0:02:46.4]} 12...
h4 {[%clk 0:02:42]} 13. Nh5 {[%clk 0:02:46]} 13... Kf8 {[%clk 0:02:34.9]} 14. f4
{[%clk 0:02:42.8]} 14... exf3 {[%clk 0:02:31.8]} 15. Qxf3 {[%clk 0:02:38.9]}
15... Nd7 {[%clk 0:02:18.1]} 16. Ne2 {[%clk 0:02:38.2]} 16... Qe7 {[%clk
0:02:05.1]} 17. Nef4 {[%clk 0:01:57]} 17... Nxf4 {[%clk 0:02:04.2]} 18. exf4
{[%clk 0:01:52.7]} 18... Nf6 {[%clk 0:01:43.7]} 19. Re1 {[%clk 0:01:41.2]} 19...
Ne4 {[%clk 0:01:43.4]} 20. f5 {[%clk 0:01:06.1]} 20... Nd2+ {[%clk 0:01:39.4]}
21. Kf2 {[%clk 0:01:00.6]} 21... Nxf3 {[%clk 0:01:39.5]} 22. Rxe7 {[%clk
0:01:00.8]} 22... Kxe7 {[%clk 0:01:39.1]} 23. Bxf3 {[%clk 0:01:01.4]} 23... Bxf5
{[%clk 0:01:35.7]} 24. Re1+ {[%clk 0:00:58.9]} 24... Kf8 {[%clk 0:01:34.3]} 25.
Re5 {[%clk 0:00:52.8]} 25... Bxh3 {[%clk 0:01:31.8]} 26. Nf4 {[%clk 0:00:48.7]}
26... Bd7 {[%clk 0:01:25.4]} 27. Bg2 {[%clk 0:00:48.9]} 27... Re8 {[%clk
0:01:24.2]} 0-1

[Event "Early-Titled-Tuesday-Blitz-April-16-2024"]
[Site "Chess.com"]
[Date "2024.04.16"]
[Round "11"]
[White "GelmanAlexander"]
[Black "guillembaches"]
[Result "1-0"]
[WhiteElo "2666"]
[BlackElo "2541"]
[TimeControl "180+1"]
[EndTime "10:09:45 PDT"]
[Termination "GelmanAlexander won by checkmate"]

1. c4 {[%clk 0:03:00.9]} 1... e6 {[%clk 0:02:59.6]} 2. Nf3 {[%clk 0:03:01.3]}
2... d5 {[%clk 0:03:00.2]} 3. d3 {[%clk 0:03:02]} 3... Nf6 {[%clk 0:02:58.2]} 4.
Nbd2 {[%clk 0:03:02.6]} 4... Be7 {[%clk 0:02:58.1]} 5. e3 {[%clk 0:03:03.1]}
5... O-O {[%clk 0:02:57.7]} 6. b3 {[%clk 0:03:03.6]} 6... b6 {[%clk 0:02:57.7]}
7. Bb2 {[%clk 0:03:00.5]} 7... Bb7 {[%clk 0:02:57.9]} 8. Rg1 {[%clk 0:03:01.1]}
8... c5 {[%clk 0:02:54.6]} 9. g3 {[%clk 0:02:55]} 9... Nc6 {[%clk 0:02:53.1]}
10. g4 {[%clk 0:02:55.6]} 10... d4 {[%clk 0:02:46.3]} 11. g5 {[%clk 0:02:55.7]}
11... Nh5 {[%clk 0:02:42.4]} 12. a3 {[%clk 0:02:56.1]} 12... e5 {[%clk
0:02:33.6]} 13. Bh3 {[%clk 0:02:52.3]} 13... g6 {[%clk 0:02:29.8]} 14. Bg4
{[%clk 0:02:52.3]} 14... Ng7 {[%clk 0:02:30]} 15. h4 {[%clk 0:02:52.7]} 15...
Bc8 {[%clk 0:02:18.2]} 16. Bxc8 {[%clk 0:02:52.2]} 16... Rxc8 {[%clk 0:02:17.8]}
17. Qe2 {[%clk 0:02:52.9]} 17... a6 {[%clk 0:02:08.3]} 18. Ne4 {[%clk
0:02:51.7]} 18... b5 {[%clk 0:02:05.1]} 19. Nh2 {[%clk 0:02:51.1]} 19... bxc4
{[%clk 0:01:58.2]} 20. bxc4 {[%clk 0:02:52]} 20... Rb8 {[%clk 0:01:56.5]} 21.
Ng4 {[%clk 0:02:51.7]} 21... Nh5 {[%clk 0:01:56.6]} 22. Bc1 {[%clk 0:02:50.5]}
22... dxe3 {[%clk 0:01:54]} 23. fxe3 {[%clk 0:02:50.2]} 23... Rb3 {[%clk
0:01:53.2]} 24. Ngf2 {[%clk 0:02:46]} 24... Qd7 {[%clk 0:01:46.2]} 25. Qc2
{[%clk 0:02:36.1]} 25... Rfb8 {[%clk 0:01:44.3]} 26. Nd2 {[%clk 0:02:28.1]}
26... R3b6 {[%clk 0:01:39.8]} 27. Rb1 {[%clk 0:02:28.2]} 27... Nd8 {[%clk
0:01:31.8]} 28. Rxb6 {[%clk 0:02:27.6]} 28... Rxb6 {[%clk 0:01:32.3]} 29. Nde4
{[%clk 0:02:24.4]} 29... Nb7 {[%clk 0:01:24.5]} 30. Nc3 {[%clk 0:02:21.2]} 30...
Rd6 {[%clk 0:01:20.3]} 31. Nd5 {[%clk 0:02:20.5]} 31... Bd8 {[%clk 0:01:15.2]}
32. Ne4 {[%clk 0:02:18.7]} 32... Rc6 {[%clk 0:01:14.6]} 33. Qa4 {[%clk
0:02:17.7]} 33... Qe6 {[%clk 0:00:58.5]} 34. Rf1 {[%clk 0:02:12.5]} 34... Kg7
{[%clk 0:00:57.7]} 35. Bb2 {[%clk 0:02:12.3]} 35... Rc8 {[%clk 0:00:36.6]} 36.
Qc2 {[%clk 0:02:08]} 36... Nd6 {[%clk 0:00:36]} 37. Nxd6 {[%clk 0:02:00.9]}
37... Qxd6 {[%clk 0:00:35.4]} 38. Qh2 {[%clk 0:02:00]} 38... Qc6 {[%clk
0:00:29.1]} 39. Qxe5+ {[%clk 0:01:59.3]} 39... Kg8 {[%clk 0:00:29.4]} 40. Qh8#
{[%clk 0:01:59]} 1-0

[Event "Early-Titled-Tuesday-Blitz-April-16-2024"]
[Site "Chess.com"]
[Date "2024.04.16"]
[Round "11"]
[White "PLAYER_2006_M"]
[Black "Alexchess1984"]
[Result "1-0"]
[WhiteElo "2960"]
[BlackElo "2684"]
[TimeControl "180+1"]
[EndTime "10:10:01 PDT"]
[Termination "PLAYER_2006_M won by resignation"]

1. e4 {[%clk 0:03:00.9]} 1... c5 {[%clk 0:02:59]} 2. Nf3 {[%clk 0:03:00.8]} 2...
g6 {[%clk 0:02:58.1]} 3. d4 {[%clk 0:02:51.8]} 3... cxd4 {[%clk 0:02:58]} 4.
Nxd4 {[%clk 0:02:52.7]} 4... Bg7 {[%clk 0:02:56.9]} 5. Nc3 {[%clk 0:02:53.5]}
5... Nc6 {[%clk 0:02:57.1]} 6. Be3 {[%clk 0:02:54.2]} 6... d6 {[%clk 0:02:57.3]}
7. Bc4 {[%clk 0:02:52.3]} 7... Nf6 {[%clk 0:02:57.2]} 8. f3 {[%clk 0:02:52.4]}
8... O-O {[%clk 0:02:55.8]} 9. Bb3 {[%clk 0:02:53]} 9... a5 {[%clk 0:02:53.8]}
10. h4 {[%clk 0:02:52.8]} 10... h5 {[%clk 0:02:51.9]} 11. Qd2 {[%clk 0:02:51.3]}
11... Nxd4 {[%clk 0:02:51.2]} 12. Bxd4 {[%clk 0:02:51.4]} 12... Bd7 {[%clk
0:02:51.7]} 13. a4 {[%clk 0:02:35.3]} 13... Bc6 {[%clk 0:02:27]} 14. O-O-O
{[%clk 0:02:25.6]} 14... Nd7 {[%clk 0:02:14.6]} 15. g4 {[%clk 0:02:21.6]} 15...
hxg4 {[%clk 0:01:58.6]} 16. h5 {[%clk 0:02:03.8]} 16... Bxd4 {[%clk 0:01:53.5]}
17. hxg6 {[%clk 0:02:03]} 17... Bg7 {[%clk 0:01:40.8]} 18. Qh2 {[%clk
0:01:53.5]} 18... Nf6 {[%clk 0:01:34.2]} 19. e5 {[%clk 0:01:53.6]} 19... g3
{[%clk 0:01:27.9]} 20. Qxg3 {[%clk 0:01:40]} 20... Nd5 {[%clk 0:00:36.4]} 21.
Nxd5 {[%clk 0:01:27.9]} 21... Bxd5 {[%clk 0:00:36.1]} 22. gxf7+ {[%clk
0:01:17.8]} 22... Bxf7 {[%clk 0:00:29.6]} 23. Rdg1 {[%clk 0:01:14.2]} 1-0

[Event "Early-Titled-Tuesday-Blitz-April-16-2024"]
[Site "Chess.com"]
[Date "2024.04.16"]
[Round "11"]
[White "Der_Balak_3Halak"]
[Black "PolandHussars"]
[Result "1-0"]
[WhiteElo "2460"]
[BlackElo "2576"]
[TimeControl "180+1"]
[EndTime "10:10:01 PDT"]
[Termination "Der_Balak_3Halak won by resignation"]

1. e4 {[%clk 0:03:00.9]} 1... e5 {[%clk 0:02:59.3]} 2. Nf3 {[%clk 0:03:01.3]}
2... Nc6 {[%clk 0:02:57.6]} 3. Bb5 {[%clk 0:03:01.9]} 3... g6 {[%clk 0:02:52]}
4. h4 {[%clk 0:03:01.4]} 4... h6 {[%clk 0:02:50.4]} 5. d4 {[%clk 0:02:57.7]}
5... exd4 {[%clk 0:02:50.4]} 6. Nxd4 {[%clk 0:02:58.6]} 6... Bg7 {[%clk
0:02:49.8]} 7. Nxc6 {[%clk 0:02:52.5]} 7... bxc6 {[%clk 0:02:50.7]} 8. Bc4
{[%clk 0:02:52.8]} 8... d6 {[%clk 0:02:45.5]} 9. c3 {[%clk 0:02:45.2]} 9... Nf6
{[%clk 0:02:45]} 10. f3 {[%clk 0:02:42.3]} 10... d5 {[%clk 0:02:42.6]} 11. Bb3
{[%clk 0:02:33.8]} 11... O-O {[%clk 0:02:41.6]} 12. O-O {[%clk 0:02:27.7]} 12...
Be6 {[%clk 0:02:37.3]} 13. e5 {[%clk 0:02:20]} 13... Nd7 {[%clk 0:02:35.2]} 14.
f4 {[%clk 0:02:20.6]} 14... Qxh4 {[%clk 0:02:33.9]} 15. Nd2 {[%clk 0:02:12.6]}
15... Rab8 {[%clk 0:02:20.9]} 16. Nf3 {[%clk 0:02:10.3]} 16... Qh5 {[%clk
0:02:16.1]} 17. Be3 {[%clk 0:02:07.4]} 17... a5 {[%clk 0:02:02.7]} 18. Nd4
{[%clk 0:01:57.6]} 18... Qxd1 {[%clk 0:02:03.6]} 19. Raxd1 {[%clk 0:01:57.1]}
19... c5 {[%clk 0:01:59]} 20. Nc6 {[%clk 0:01:55.4]} 20... Rb6 {[%clk
0:01:55.9]} 21. Bxd5 {[%clk 0:01:51.7]} 21... Bxd5 {[%clk 0:01:49.5]} 22. Rxd5
{[%clk 0:01:50.2]} 22... Rxc6 {[%clk 0:01:49.4]} 23. Rxd7 {[%clk 0:01:49.5]}
23... c4 {[%clk 0:01:47.7]} 24. Rfd1 {[%clk 0:01:46.5]} 24... g5 {[%clk
0:01:43]} 25. g3 {[%clk 0:01:43.2]} 25... Rb8 {[%clk 0:01:32.8]} 26. Rd8+ {[%clk
0:01:39.2]} 26... Rxd8 {[%clk 0:01:33.4]} 27. Rxd8+ {[%clk 0:01:39.7]} 27... Kh7
{[%clk 0:01:34.3]} 28. Rd7 {[%clk 0:01:40.5]} 28... Kg6 {[%clk 0:01:34]} 29. Kf2
{[%clk 0:01:37.2]} 29... a4 {[%clk 0:01:29.3]} 30. Kf3 {[%clk 0:01:36.6]} 30...
a3 {[%clk 0:01:28.8]} 31. bxa3 {[%clk 0:01:34.6]} 31... Ra6 {[%clk 0:01:28.8]}
32. Ke4 {[%clk 0:01:30]} 32... gxf4 {[%clk 0:01:29.1]} 33. gxf4 {[%clk
0:01:30.9]} 33... f5+ {[%clk 0:01:25.6]} 34. exf6 {[%clk 0:01:22.1]} 34... Bxf6
{[%clk 0:01:25.6]} 35. f5+ {[%clk 0:01:22]} 35... Kh5 {[%clk 0:01:24.8]} 36. Rd2
{[%clk 0:01:15.7]} 36... Kg4 {[%clk 0:01:15.9]} 37. Rg2+ {[%clk 0:01:14]} 37...
Kh3 {[%clk 0:01:15.8]} 38. Rg6 {[%clk 0:01:14.3]} 38... h5 {[%clk 0:01:12.3]}
39. Bd4 {[%clk 0:01:10.5]} 39... Bxd4 {[%clk 0:01:11.7]} 40. Rxa6 {[%clk
0:01:10.4]} 40... Bxc3 {[%clk 0:01:12.3]} 41. Rc6 {[%clk 0:01:08.6]} 41... Kg2
{[%clk 0:01:11.9]} 42. Rxc4 {[%clk 0:01:07.9]} 42... Bb2 {[%clk 0:01:12.5]} 43.
Rc2+ {[%clk 0:01:07.7]} 1-0

[Event "Early-Titled-Tuesday-Blitz-April-16-2024"]
[Site "Chess.com"]
[Date "2024.04.16"]
[Round "11"]
[White "Hudijegszid"]
[Black "Alexei_Gubajdullin"]
[Result "0-1"]
[WhiteElo "2461"]
[BlackElo "2618"]
[TimeControl "180+1"]
[EndTime "10:10:07 PDT"]
[Termination "Alexei_Gubajdullin won by resignation"]

1. e4 {[%clk 0:02:56.2]} 1... c5 {[%clk 0:02:53.7]} 2. Nf3 {[%clk 0:02:56.1]}
2... d6 {[%clk 0:02:53.6]} 3. Bb5+ {[%clk 0:02:55.2]} 3... Nd7 {[%clk 0:02:53]}
4. O-O {[%clk 0:02:54.6]} 4... Nf6 {[%clk 0:02:52.5]} 5. Re1 {[%clk 0:02:54.4]}
5... a6 {[%clk 0:02:51.7]} 6. Bd3 {[%clk 0:02:54]} 6... e6 {[%clk 0:02:51]} 7.
c3 {[%clk 0:02:53.7]} 7... Be7 {[%clk 0:02:50.7]} 8. Bc2 {[%clk 0:02:53.6]} 8...
c4 {[%clk 0:02:48.8]} 9. b3 {[%clk 0:02:52.8]} 9... b5 {[%clk 0:02:46.8]} 10.
bxc4 {[%clk 0:02:51.4]} 10... bxc4 {[%clk 0:02:47.1]} 11. Na3 {[%clk 0:02:52]}
11... Qc7 {[%clk 0:02:47.2]} 12. Qe2 {[%clk 0:02:50.4]} 12... Nb6 {[%clk
0:02:47.2]} 13. e5 {[%clk 0:02:44]} 13... Nfd5 {[%clk 0:02:47.2]} 14. exd6
{[%clk 0:02:34.6]} 14... Bxd6 {[%clk 0:02:47.2]} 15. Rb1 {[%clk 0:02:25.9]}
15... O-O {[%clk 0:02:42.1]} 16. d4 {[%clk 0:02:26.1]} 16... cxd3 {[%clk
0:02:37.7]} 17. Qxd3 {[%clk 0:02:26]} 17... f5 {[%clk 0:02:31.1]} 18. c4 {[%clk
0:02:25.9]} 18... Nf4 {[%clk 0:02:29.1]} 19. Bxf4 {[%clk 0:02:19.2]} 19... Bxf4
{[%clk 0:02:29.2]} 20. Qd4 {[%clk 0:02:11.7]} 20... Nd7 {[%clk 0:02:06.8]} 21.
Rxe6 {[%clk 0:02:06.7]} 21... Nc5 {[%clk 0:02:06.5]} 22. Reb6 {[%clk 0:01:43.6]}
22... Be6 {[%clk 0:02:01.2]} 23. g3 {[%clk 0:01:29.8]} 23... Bh6 {[%clk
0:02:00.2]} 24. Ne5 {[%clk 0:01:20.6]} 24... Rad8 {[%clk 0:01:55.5]} 25. Qa1
{[%clk 0:01:06.2]} 25... f4 {[%clk 0:01:47.6]} 26. Rc6 {[%clk 0:01:06]} 26...
Qe7 {[%clk 0:01:46.1]} 27. Re1 {[%clk 0:01:00.8]} 27... Rd2 {[%clk 0:01:38.5]}
28. Nf3 {[%clk 0:00:51.7]} 28... fxg3 {[%clk 0:01:30.8]} 29. Nxd2 {[%clk
0:00:29.2]} 29... gxf2+ {[%clk 0:01:29]} 30. Kh1 {[%clk 0:00:29.8]} 30...
fxe1=Q+ {[%clk 0:01:26.4]} 31. Qxe1 {[%clk 0:00:30.7]} 31... Bd5+ {[%clk
0:01:26.1]} 0-1